bitfinex-derivatives/quotes_ETHF0:USTF0_20260303
["timestamp","ask_amount","ask_price","bid_price","bid_amount"]
[1772502844855,1.7788025,2027.7,2026.8,1.78341559]
[1772502845156,1.78304276,2028.0,2027.0,1.78341559]
[1772502845356,1.78304276,2028.0,2027.2,1.78341559]
[1772502853962,0.00424026,2028.0,2027.2,1.78341559]
[1772502854359,1.78304276,2028.0,2027.2,1.78341559]
[1772502859368,1.7922287,2027.9,2026.8,1.69866676]
[1772502860570,1.7922287,2027.9,2027.1,1.69866676]
[1772502860866,1.7922287,2027.9,2027.2,1.69866676]
[1772502865869,1.7922287,2027.9,2027.3,1.69866676]
[1772502866767,1.7922287,2028.4,2027.3,1.69866676]
[1772502866965,1.7922287,2028.2,2027.5,1.69866676]
[1772502867170,1.7922287,2028.2,2027.7,1.69866676]
[1772502867668,1.7922287,2028.2,2027.4,1.69866676]
[1772502867868,1.79827659,2028.2,2027.4,1.69866676]
[1772502874065,6.25584026,2028.1,2027.4,1.69866676]
[1772502874273,1.30639283,2028.0,2027.4,1.69866676]
[1772502877472,1.30639283,2028.0,2027.1,1.69866676]
[1772502877870,1.29873086,2027.8,2027.1,1.69866676]
[1772502882475,1.28186031,2027.6,2027.1,1.69866676]
[1772502884973,1.28186031,2027.6,2026.9,1.69866676]
[1772502885274,2.04461567,2027.7,2026.4,1.69866676]
[1772502885275,1.64643451,2027.3,2026.4,1.69866676]
[1772502889073,1.64643451,2027.3,2026.3,0.00497767]
[1772502889376,1.6264671,2027.1,2026.4,1.74521963]
[1772502889884,1.6264671,2027.1,2026.3,0.00497767]
[1772502891681,1.57535865,2026.8,2026.3,1.7501973]
[1772502895378,1.54985023,2027.2,2026.3,1.7501973]
[1772502895577,1.54680041,2027.1,2026.3,0.00497767]
[1772502895882,1.54680041,2027.1,2026.3,1.7501973]
[1772502896781,1.56111111,2026.9,2026.3,1.7501973]
[1772502897381,1.56111111,2026.9,2026.3,0.00497767]
[1772502897978,1.56111111,2026.9,2026.3,1.7501973]
[1772502900479,1.56111111,2026.9,2026.2,1.74521963]
[1772502900684,1.64197624,2026.5,2025.6,1.74521963]
[1772502900879,6.461,2026.5,2025.6,1.74521963]
[1772502901186,1.64197624,2027.2,2026.1,1.74521963]
[1772502901387,1.31173079,2027.2,2026.1,1.74521963]
[1772502901681,1.31568145,2027.2,2026.1,1.75012046]
[1772502901879,0.00395066,2027.2,2026.1,1.75012046]
[1772502902278,1.64197624,2027.6,2026.4,1.74521963]
[1772502903180,8.10297624,2027.8,2026.7,1.74521963]
[1772502903381,1.64197624,2027.7,2026.7,1.74521963]
[1772502904885,0.00478561,2027.8,2026.7,1.74521963]
[1772502905278,0.00478561,2027.8,2026.9,1.74521963]
[1772502905877,1.64676185,2027.8,2026.9,1.74521963]
[1772502907184,1.64676185,2027.8,2026.5,2.04461567]
[1772502907185,1.64197624,2027.5,2026.3,1.74521963]
[1772502910988,1.64197624,2027.5,2026.4,1.74521963]
[1772502913583,1.64197624,2027.7,2026.6,1.74521963]
[1772502914592,1.64676185,2027.8,2026.8,1.74521963]
[1772502915992,1.64197624,2027.5,2026.6,1.74521963]
[1772502916392,1.64197624,2027.2,2026.6,1.74521963]
[1772502919094,1.57356508,2027.1,2026.1,0.00490083]
[1772502919293,1.57356508,2027.1,2026.1,1.74714152]
[1772502919998,1.82025508,2027.1,2026.1,1.74714152]
[1772502920393,1.57356508,2026.9,2026.1,1.74714152]
[1772502921097,1.57356508,2027.2,2026.1,1.74714152]
[1772502921488,1.57356508,2027.0,2026.1,1.74714152]
[1772502929711,1.57356508,2026.8,2026.1,0.00490083]
[1772502930501,1.57356508,2026.6,2025.5,1.74224069]
[1772502930706,6.461,2026.7,2025.5,1.74224069]
[1772502930707,1.57356508,2026.4,2025.5,1.74224069]
[1772502931407,1.57356508,2026.4,2025.5,1.74631612]
[1772502940515,1.57356508,2026.4,2025.5,0.00407543]
[1772502940911,1.57356508,2026.0,2024.5,1.74224069]
[1772502941105,1.57356508,2026.0,2024.4,0.24701]
[1772502941106,1.57356508,2026.1,2024.7,2.04557289]
[1772502941310,4.09851921,2026.4,2024.7,2.04557289]
[1772502941311,1.57356508,2026.3,2024.8,1.74224069]
[1772502941814,1.57889308,2026.3,2024.8,1.7481805]
[1772502942309,1.57889308,2026.3,2024.8,7.8238705]
[1772502942515,1.57889308,2026.3,2025.1,1.74224069]
[1772502942711,1.57889308,2026.3,2025.2,1.74224069]
[1772502944515,1.57889308,2026.3,2025.4,1.74224069]
[1772502944516,0.005328,2026.3,2025.4,1.74224069]
[1772502944717,1.57356508,2026.9,2025.4,1.74224069]
[1772502944911,1.57356508,2026.9,2025.6,1.74224069]
[1772502945112,1.57356508,2026.9,2025.7,1.74224069]
[1772502945312,1.57356508,2027.4,2026.0,1.74224069]
[1772502945513,1.57356508,2027.4,2026.0,1.98906069]
[1772502945718,1.5774739,2027.4,2026.0,1.98906069]
[1772502946418,0.00390882,2027.4,2026.3,1.74224069]
[1772502946618,0.00390882,2027.4,2026.5,1.74224069]
[1772502946917,0.00390882,2027.4,2026.6,1.74224069]
[1772502949114,1.66758643,2027.4,2026.6,1.74224069]
[1772502953321,0.00390882,2027.4,2026.6,1.74224069]
[1772502954028,1.66758643,2027.4,2026.6,1.74224069]
[1772502955429,1.66758643,2027.4,2026.4,1.6895372]
[1772502963731,1.91424643,2027.4,2026.4,1.6895372]
[1772502964031,1.66367761,2027.1,2026.3,1.69406152]
[1772502964228,0.24671,2027.0,2026.3,1.69406152]
[1772502964434,1.66367761,2026.9,2026.1,1.6895372]
[1772502965534,1.66367761,2026.9,2026.1,1.69506873]
[1772502968525,1.66367761,2027.2,2026.1,1.69506873]
[1772502971329,1.66367761,2027.0,2026.1,1.69506873]
[1772502976033,1.66367761,2027.2,2026.1,1.69506873]
[1772502977831,6.21801874,2027.1,2026.1,1.69506873]
[1772502978038,1.57679728,2027.0,2026.1,1.69506873]
[1772502979442,1.60450557,2026.9,2026.1,1.69506873]
[1772502981041,1.60450557,2027.0,2026.1,1.69506873]
[1772502981643,2.0463463,2027.1,2026.1,1.69506873]
[1772502981644,1.60450557,2026.7,2026.1,1.69506873]
[1772502981844,1.60450557,2026.7,2026.1,0.00553153]
[1772502982046,1.60450557,2026.7,2025.7,1.54054993]
[1772502982845,1.60450557,2026.4,2025.7,1.54054993]
[1772502983045,1.60450557,2026.4,2025.7,1.54452762]
[1772502986051,1.60450557,2026.7,2025.7,1.54452762]
[1772502991550,1.85125557,2026.7,2025.7,1.54452762]
[1772502991858,1.60450557,2026.5,2025.7,1.54452762]
[1772502992459,1.60450557,2026.3,2025.5,1.54054993]
[1772502992758,1.60450557,2026.1,2025.5,1.54054993]
[1772502993556,1.60450557,2026.1,2025.5,1.54482314]
[1772502997464,1.60450557,2026.1,2025.5,0.00427321]
[1772502997665,1.60450557,2026.0,2025.5,0.00427321]
[1772502998363,1.60450557,2026.0,2025.5,1.54482314]
[1772503001963,1.60450557,2026.0,2025.1,1.54054993]
[1772503002158,1.85133557,2026.0,2025.1,1.54054993]
[1772503002967,1.85133557,2026.0,2025.1,1.54628156]
[1772503004863,1.60450557,2025.7,2025.1,0.00573163]
[1772503005159,1.60450557,2025.5,2025.1,0.00573163]
[1772503005961,1.60450557,2025.5,2025.1,1.54628156]
[1772503007367,1.60450557,2025.5,2025.0,1.54054993]
[1772503008269,1.60450557,2025.5,2025.0,0.00539554]
[1772503008569,1.60450557,2025.5,2025.0,1.67093423]
[1772503010066,2.0463463,2025.8,2025.0,1.67093423]
[1772503010270,1.54518521,2026.2,2025.2,1.66553869]
[1772503010767,1.54518521,2026.1,2025.2,1.66553869]
[1772503010972,1.54518521,2025.9,2025.2,1.66553869]
[1772503011173,1.5492895,2025.9,2025.2,1.66553869]
[1772503011574,6.463,2025.8,2025.2,1.66553869]
[1772503011875,8.00818521,2025.8,2025.2,1.66553869]
[1772503012072,1.54518521,2025.7,2025.2,1.66553869]
[1772503012470,1.54518521,2025.7,2025.0,1.67093423]
[1772503012665,0.24688,2025.6,2024.8,1.66553869]
[1772503012870,1.54518521,2025.5,2024.3,1.66553869]
[1772503013070,1.54518521,2025.3,2024.3,1.66553869]
[1772503013668,6.463,2025.4,2024.3,1.66553869]
[1772503013669,1.54518521,2025.4,2024.4,1.66553869]
[1772503015976,2.05045059,2025.9,2024.4,1.66553869]
[1772503015977,1.54518521,2025.6,2024.4,1.66553869]
[1772503016474,1.54518521,2025.8,2024.7,1.66553869]
[1772503016671,1.54518521,2025.7,2024.7,1.66553869]
[1772503017082,1.5492895,2025.9,2024.7,1.66553869]
[1772503021685,0.00410429,2025.9,2025.2,1.66553869]
[1772503021982,1.5492895,2025.9,2025.2,1.66553869]
[1772503022981,1.5492895,2025.9,2025.1,1.66553869]
[1772503023185,1.5492895,2025.9,2024.6,1.66553869]
[1772503023485,1.54518521,2025.7,2024.6,1.66553869]
[1772503023983,1.54518521,2025.6,2024.6,1.66553869]
[1772503024186,1.54518521,2025.8,2024.6,1.66553869]
[1772503024982,1.79204521,2025.8,2024.6,1.66553869]
[1772503025985,1.54518521,2025.6,2024.6,1.66553869]
[1772503029793,1.54518521,2025.3,2024.4,1.66553869]
[1772503031788,1.54518521,2025.1,2024.4,1.66553869]
[1772503035195,8.00818521,2025.3,2024.4,1.66553869]
[1772503035396,1.54518521,2025.2,2024.4,1.66553869]
[1772503037399,1.54518521,2025.1,2024.4,1.66553869]
[1772503037793,1.54518521,2025.1,2024.3,0.0058326]
[1772503038093,1.5623379,2024.4,2023.7,1.63480938]
[1772503038297,1.5623379,2024.4,2023.3,10.143]
[1772503038298,1.5623379,2024.1,2023.3,1.63480938]
[1772503038594,1.5623379,2023.8,2023.3,1.63480938]
[1772503039096,1.56745286,2023.8,2023.3,1.63893633]
[1772503039293,1.5623379,2023.7,2023.3,1.63893633]
[1772503039497,1.5623379,2023.5,2022.5,1.63480938]
[1772503040091,1.5623379,2023.2,2022.3,1.63480938]
[1772503040293,1.5623379,2023.2,2020.9,36.49218157]
[1772503040294,1.5623379,2022.9,2021.6,1.63480938]
[1772503040600,1.5623379,2022.9,2021.6,1.6399791]
[1772503041800,1.5623379,2022.7,2021.6,1.6399791]
[1772503043198,1.5623379,2023.0,2021.6,1.6399791]
[1772503043902,1.5623379,2022.8,2021.6,1.6399791]
[1772503044297,6.464,2022.9,2021.6,1.6399791]
[1772503044298,1.5623379,2022.5,2021.6,1.6399791]
[1772503044603,1.5623379,2022.3,2021.6,1.6399791]
[1772503044804,1.5659322,2022.3,2021.6,1.6399791]
[1772503048700,0.0035943,2022.3,2021.6,1.6399791]
[1772503049198,1.5623379,2022.9,2021.6,1.5669791]
[1772503050000,1.56627557,2022.9,2021.6,1.5713393]
[1772503050395,0.00393767,2022.9,2022.0,1.63480938]
[1772503051308,1.5623379,2023.3,2022.0,1.63480938]
[1772503051510,1.5623379,2023.5,2022.0,1.63480938]
[1772503052009,1.5623379,2023.5,2022.2,1.63480938]
[1772503052210,0.00418999,2023.5,2022.4,1.63480938]
[1772503052609,1.56652789,2023.5,2022.4,1.63480938]
[1772503053914,1.5623379,2023.4,2022.4,1.63480938]
[1772503055116,1.56652789,2023.5,2022.4,1.63480938]
[1772503059013,1.56652789,2023.5,2022.5,1.63480938]
[1772503059815,0.00418999,2023.5,2022.5,1.63480938]
[1772503060012,0.00418999,2023.5,2022.6,1.63480938]
[1772503060219,1.56652789,2023.5,2022.6,1.63480938]
[1772503076732,0.00418999,2023.5,2022.6,1.63480938]
[1772503077231,1.54100574,2023.5,2022.6,1.63480938]
[1772503077429,1.54100574,2023.5,2022.5,1.55058412]
[1772503078335,1.53681575,2023.3,2022.5,1.55058412]
[1772503081739,0.00418999,2023.5,2022.5,1.55058412]
[1772503081935,1.78396575,2023.4,2022.5,1.55058412]
[1772503082237,1.53681575,2023.2,2022.4,1.55058412]
[1772503082429,1.53681575,2023.0,2021.9,1.55058412]
[1772503082633,1.53681575,2022.8,2021.9,1.55058412]
[1772503088041,5.61616202,2023.5,2022.2,1.55058412]
[1772503088239,5.61616202,2023.5,2022.1,2.0528829]
[1772503088240,7.76270963,2023.4,2022.4,1.55058412]
[1772503088442,1.53681575,2023.4,2022.4,1.55058412]
[1772503090244,0.00418999,2023.5,2022.4,1.55058412]
[1772503090544,1.54100574,2023.5,2022.4,1.55058412]
[1772503090744,0.00418999,2023.5,2022.4,1.55058412]
[1772503091345,1.54100574,2023.5,2022.4,1.55058412]
[1772503091838,1.54100574,2023.5,2022.5,1.55058412]
[1772503091839,0.00418999,2023.5,2022.5,1.55058412]
[1772503093442,1.53681575,2023.9,2023.1,1.55058412]
[1772503093643,1.53681575,2023.9,2023.2,1.55058412]
[1772503094445,0.00406718,2023.9,2023.2,1.55594467]
[1772503096144,1.53681575,2024.6,2023.4,1.55058412]
[1772503097144,1.54100849,2024.6,2023.4,1.55058412]
[1772503098444,1.54100849,2024.6,2023.4,3.60149763]
[1772503098644,1.54100849,2024.6,2023.5,1.63536634]
[1772503099443,1.59635934,2024.5,2023.5,1.63536634]
[1772503099950,1.59635934,2024.5,2023.4,1.63536634]
[1772503100147,1.59635934,2024.2,2023.4,1.63536634]
[1772503103245,1.59635934,2024.2,2023.2,1.64072689]
[1772503103448,1.59635934,2024.0,2023.2,0.00536055]
[1772503103645,1.59635934,2024.0,2023.2,1.64072689]
[1772503105554,1.59635934,2024.0,2023.2,0.00536055]
[1772503105851,1.59635934,2023.7,2022.7,1.63536634]
[1772503106752,1.59635934,2023.7,2022.7,1.63999643]
[1772503106953,1.84346934,2023.7,2022.7,1.63999643]
[1772503107751,2.05091351,2024.1,2022.9,1.63536634]
[1772503107752,1.59635934,2024.1,2022.9,1.63536634]
[1772503108054,1.59635934,2024.1,2023.0,1.63536634]
[1772503108857,1.59635934,2024.1,2023.2,1.63536634]
[1772503109056,1.59635934,2024.4,2023.2,1.63536634]
[1772503110252,1.59635934,2024.4,2023.1,2.29809351]
[1772503110253,1.59635934,2024.4,2023.5,1.63536634]
[1772503110457,1.60055208,2024.6,2023.5,1.63536634]
[1772503111264,1.60055208,2024.6,2023.6,1.63536634]
[1772503119481,1.60055208,2024.6,2023.7,1.63536634]
[1772503121181,1.60055208,2024.6,2023.5,1.63536634]
[1772503124684,1.59635934,2024.3,2023.3,1.63536634]
[1772503126279,1.84342934,2024.1,2022.9,1.63536634]
[1772503126785,1.59635934,2023.9,2022.9,1.63536634]
[1772503127282,1.59635934,2024.4,2023.1,1.63536634]
[1772503127482,1.59635934,2024.2,2023.1,1.63536634]
[1772503133088,1.59635934,2024.2,2023.3,1.61407275]
[1772503134389,1.59635934,2024.2,2022.7,6.08655009]
[1772503134390,0.00157587,2022.6,2021.4,1.63621277]
[1772503134684,0.00157587,2022.4,2021.4,1.63621277]
[1772503134886,0.00157587,2022.4,2021.6,1.63621277]
[1772503135282,0.00157587,2022.4,2021.7,1.63615466]
[1772503135283,0.00169209,2022.3,2021.7,1.63615466]
[1772503135883,0.00169209,2022.3,2021.8,1.63615466]
[1772503136088,0.00507264,2022.4,2021.8,1.63615466]
[1772503136490,0.29683671,2022.4,2021.8,1.63615466]
[1772503137689,0.29683671,2022.4,2021.6,1.69783408]
[1772503137886,0.29683671,2022.4,2021.7,1.69305616]
[1772503140891,0.00507264,2022.4,2021.8,1.69242227]
[1772503141287,0.00507264,2022.4,2021.6,1.61885067]
[1772503141288,0.28272812,2022.4,2021.6,1.61885067]
[1772503141492,0.7699046,2022.2,2021.6,0.00477792]
[1772503141684,0.7699046,2022.1,2021.6,0.00477792]
[1772503142090,0.7699046,2022.1,2021.7,8.94427403]
[1772503142286,0.76739046,2022.2,2021.6,0.00477792]
[1772503142597,7.27168126,2022.4,2021.6,1.61885067]
[1772503142790,0.80368126,2022.4,2021.8,1.61407275]
[1772503142991,0.00507264,2022.4,2021.8,1.61407275]
[1772503143189,0.00507264,2022.4,2022.1,1.61407275]
[1772503143385,0.79860862,2022.6,2022.1,1.61407275]
[1772503143694,0.79860862,2022.6,2021.7,1.61407275]
[1772503143993,0.79860862,2022.6,2021.8,1.61407275]
[1772503144496,7.27279667,2022.6,2022.0,1.61407275]
[1772503144995,0.80912268,2022.5,2022.0,1.61407275]
[1772503145498,0.80912268,2022.5,2022.0,8.94427403]
[1772503145694,0.81200749,2022.6,2022.1,1.61407275]
[1772503146193,0.81200749,2022.6,2021.6,1.61885067]
[1772503146194,0.80581944,2022.4,2021.6,1.61885067]
[1772503146697,0.80581944,2022.4,2021.6,0.00477792]
[1772503147096,1.32284598,2022.1,2021.0,1.61407275]
[1772503147295,1.32284598,2021.9,2021.0,1.61407275]
[1772503147495,7.79084598,2021.9,2021.0,1.61407275]
[1772503147693,1.32284598,2021.9,2021.2,1.61407275]
[1772503147894,1.31958729,2022.0,2021.2,1.61407275]
[1772503148094,1.31958729,2022.0,2021.2,1.61775751]
[1772503148397,1.31958729,2022.0,2021.4,1.61407275]
[1772503148800,1.31958729,2022.0,2021.5,1.61407275]
[1772503149098,1.31958729,2022.0,2021.3,1.61407275]
[1772503149299,1.31958729,2022.0,2021.3,8.94427403]
[1772503149499,1.31958729,2022.0,2021.3,1.61407275]
[1772503150998,1.31958729,2022.0,2021.4,1.61407275]
[1772503151496,6.468,2022.1,2021.6,7.33020128]
[1772503151699,7.87473128,2022.1,2021.7,1.61407275]
[1772503151897,1.40673128,2022.0,2021.3,1.61407275]
[1772503152200,1.40673128,2022.0,2021.5,1.61407275]
[1772503152793,1.40673128,2022.0,2021.3,1.61407275]
[1772503153003,1.40414789,2021.8,2021.3,1.61407275]
[1772503153605,1.40414789,2021.8,2021.4,7.33020128]
[1772503154003,1.40414789,2021.8,2021.4,8.94427403]
[1772503154004,7.87214789,2021.8,2021.4,8.94427403]
[1772503154302,1.47854423,2021.7,2021.4,1.61407275]
[1772503154694,1.47854423,2021.7,2021.5,7.33020128]
[1772503154998,1.47854423,2021.7,2021.2,1.61775751]
[1772503155204,1.47854423,2021.7,2021.4,7.33020128]
[1772503155701,1.47854423,2021.7,2021.5,7.33020128]
[1772503156003,1.47854423,2021.7,2021.2,1.61775751]
[1772503156204,1.47854423,2021.7,2021.4,7.33020128]
[1772503156406,1.47854423,2021.7,2021.2,1.61775751]
[1772503156910,1.47854423,2021.7,2021.2,8.94795879]
[1772503157900,1.47854423,2021.7,2021.3,1.73170399]
[1772503158109,2.05091351,2022.1,2021.5,1.73170399]
[1772503158110,6.468,2021.8,2021.5,1.73170399]
[1772503158302,7.95125494,2021.8,2021.3,1.73170399]
[1772503158605,1.49419585,2021.7,2021.4,7.33020128]
[1772503159203,1.49419585,2021.7,2021.2,1.84384074]
[1772503159406,6.468,2021.6,2021.2,1.84384074]
[1772503159605,6.468,2021.6,2021.3,5.39954806]
[1772503160211,6.468,2021.5,2021.3,5.39954806]
[1772503160405,0.2473,2022.2,2021.2,1.84384074]
[1772503160406,0.13022221,2021.7,2021.2,1.84384074]
[1772503160610,6.469,2021.6,2021.3,1.84029546]
[1772503160801,0.13022221,2021.8,2021.3,1.84029546]
[1772503161006,6.469,2021.7,2021.3,1.84029546]
[1772503161207,6.469,2021.7,2021.5,5.39954806]
[1772503161609,0.1387666,2022.1,2021.6,5.39954806]
[1772503161804,0.1387666,2021.9,2021.4,1.84029546]
[1772503162113,0.1387666,2021.9,2021.6,7.23421298]
[1772503162114,6.469,2021.9,2021.6,7.23421298]
[1772503162314,6.469,2021.9,2021.3,1.83478032]
[1772503162315,0.13853581,2021.8,2021.3,1.83478032]
[1772503162713,0.13853581,2021.8,2021.6,5.39954806]
[1772503163215,0.13853581,2021.8,2021.7,5.39954806]
[1772503163409,0.13853581,2021.8,2021.4,1.83478032]
[1772503163611,0.13853581,2021.8,2021.6,5.39954806]
[1772503164011,0.13853581,2021.8,2021.4,1.83478032]
[1772503164211,0.13853581,2021.8,2021.6,5.39954806]
[1772503164406,7.11874684,2021.8,2021.4,1.83478032]
[1772503164615,7.11874684,2021.8,2021.7,4.86260806]
[1772503164815,7.11874684,2021.8,2021.4,1.83478032]
[1772503165214,7.11874684,2021.8,2021.6,4.86260806]
[1772503165514,7.11874684,2021.8,2021.4,1.83478032]
[1772503165709,7.12969968,2021.8,2021.6,4.86260806]
[1772503166011,6.98021103,2021.8,2021.4,1.83478032]
[1772503166211,0.14948865,2021.9,2021.7,4.86260806]
[1772503166516,6.469,2021.8,2021.5,1.82890243]
[1772503166718,6.98064004,2021.7,2021.5,1.82890243]
[1772503167217,6.469,2021.7,2021.6,4.86260806]
[1772503167412,5.773,2021.7,2021.6,4.86260806]
[1772503167612,12.754467,2021.7,2021.6,4.86260806]
[1772503167809,4.05743464,2022.0,2021.7,1.73170399]
[1772503168118,1.80369176,2022.1,2021.9,4.86260806]
[1772503168318,1.80369176,2022.1,2021.9,4.25071994]
[1772503168514,1.80369176,2022.1,2021.6,1.73170399]
[1772503168914,6.469,2022.0,2021.6,1.73170399]
[1772503169121,8.27269176,2022.0,2021.6,1.73170399]
[1772503169719,8.27269176,2022.0,2021.4,1.73170399]
[1772503170122,1.80369176,2021.9,2021.4,1.73170399]
[1772503171218,6.469,2022.1,2021.4,1.73170399]
[1772503171616,8.27269176,2022.1,2021.4,1.73170399]
[1772503172623,5.8611264,2022.3,2021.4,1.73170399]
[1772503172921,6.469,2022.2,2021.4,1.73170399]
[1772503173121,6.469,2022.1,2021.4,1.73170399]
[1772503173614,8.27269176,2022.1,2021.4,1.73170399]
[1772503174526,1.80369176,2022.0,2021.4,1.73170399]
[1772503174921,8.27269176,2022.1,2021.4,1.73170399]
[1772503175122,7.62200713,2022.5,2021.4,1.73170399]
[1772503175123,5.8611264,2022.3,2021.4,1.73170399]
[1772503175624,6.469,2022.2,2021.4,1.73170399]
[1772503175927,4.05743464,2022.4,2021.4,1.73170399]
[1772503176126,8.27269176,2022.5,2021.4,1.73170399]
[1772503176724,1.80369176,2022.4,2021.4,1.73170399]
[1772503177727,1.80369176,2022.3,2021.4,1.73170399]
[1772503177929,1.80369176,2022.1,2021.4,1.73170399]
[1772503179932,1.80369176,2022.3,2021.4,1.73170399]
[1772503180133,6.469,2022.2,2021.4,1.73170399]
[1772503180326,8.27269176,2022.2,2021.4,1.73170399]
[1772503180525,1.80369176,2022.0,2021.4,1.73170399]
[1772503181532,1.80369176,2021.8,2021.3,1.73170399]
[1772503182038,1.80369176,2021.8,2020.6,10.143]
[1772503182234,1.80369176,2021.6,2020.7,1.73170399]
[1772503182435,1.80369176,2021.4,2020.7,1.73170399]
[1772503183132,6.47,2021.5,2019.7,4.947]
[1772503183133,1.80369176,2021.2,2020.3,1.73170399]
[1772503183336,1.80369176,2021.0,2020.3,1.73170399]
[1772503184234,1.80816589,2021.0,2020.3,1.73649846]
[1772503184534,1.80816589,2021.0,2020.3,0.00479447]
[1772503184736,1.80816589,2021.0,2020.3,1.73649846]
[1772503186535,1.80816589,2021.0,2019.1,6.09262]
[1772503186536,1.80369176,2020.6,2019.1,1.73170399]
[1772503186832,1.80369176,2020.4,2019.3,1.73170399]
[1772503187132,1.80369176,2020.2,2019.3,1.73170399]
[1772503187332,1.80369176,2020.7,2019.3,1.73170399]
[1772503187638,2.22249609,2020.5,2019.3,1.73623101]
[1772503188235,2.22249609,2020.3,2019.3,1.73623101]
[1772503188938,2.22249609,2020.4,2019.3,1.73623101]
[1772503189536,2.22249609,2020.7,2019.3,1.73623101]
[1772503191341,2.22249609,2020.7,2019.6,2.30748903]
[1772503191541,2.22249609,2020.7,2019.7,2.30748903]
[1772503193743,2.22249609,2020.5,2019.7,2.30748903]
[1772503194840,2.22249609,2020.5,2019.3,0.00452702]
[1772503195035,2.22249609,2020.5,2019.3,2.31201605]
[1772503195235,6.47,2020.7,2019.3,2.31201605]
[1772503195236,2.22249609,2020.3,2019.3,2.31201605]
[1772503197646,2.22249609,2020.6,2019.5,2.30748903]
[1772503200645,2.22249609,2020.9,2019.5,2.30748903]
[1772503201343,2.22249609,2020.9,2019.7,2.30748903]
[1772503201648,2.22697022,2021.0,2020.0,2.30748903]
[1772503202048,2.22249609,2020.6,2019.6,2.30748903]
[1772503202351,0.24748,2020.7,2019.4,2.30748903]
[1772503202352,2.22249609,2020.4,2019.4,2.30748903]
[1772503202553,2.22249609,2020.4,2019.3,2.31201605]
[1772503202845,2.22249609,2020.3,2019.2,0.59168382]
[1772503203050,2.22249609,2020.1,2019.2,0.59168382]
[1772503203748,2.22249609,2020.1,2019.2,0.59627631]
[1772503204146,2.22249609,2020.1,2019.2,2.90376534]
[1772503204344,2.22249609,2020.0,2018.7,2.30748903]
[1772503204548,2.05643481,2020.1,2018.1,2.30748903]
[1772503204549,2.22249609,2019.3,2018.1,2.30748903]
[1772503204749,6.09045,2019.9,2017.6,6.471]
[1772503204750,2.22249609,2019.9,2018.5,2.30748903]
[1772503204943,2.22249609,2019.9,2018.8,2.30748903]
[1772503205447,2.22628597,2019.9,2018.8,2.31102515]
[1772503206653,0.00378988,2019.9,2019.1,2.30748903]
[1772503206843,2.22249609,2020.5,2019.3,2.30748903]
[1772503207247,2.22249609,2020.1,2018.9,2.30748903]
[1772503207450,2.22249609,2019.9,2018.8,0.00353612]
[1772503207649,2.22249609,2019.8,2018.8,0.00353612]
[1772503207849,2.22693377,2019.8,2018.8,0.00353612]
[1772503208052,2.22249609,2019.4,2018.3,2.30748903]
[1772503209055,2.22249609,2019.4,2018.3,2.31297901]
[1772503209654,2.22249609,2019.4,2018.5,2.30748903]
[1772503210352,2.22249609,2019.7,2018.7,2.30748903]
[1772503210547,2.22249609,2019.7,2018.5,2.30748903]
[1772503210748,2.22249609,2018.7,2017.2,2.55538903]
[1772503210954,2.22249609,2018.6,2017.3,2.30748903]
[1772503211150,2.22249609,2018.6,2017.5,2.30748903]
[1772503211751,2.22249609,2018.6,2017.5,2.31322814]
[1772503211951,2.22249609,2018.4,2017.5,0.00573911]
[1772503212156,4.2789309,2018.2,2016.4,2.30748903]
[1772503212357,4.2789309,2018.2,2014.6,17.82752881]
[1772503212358,2.22249609,2016.5,2014.6,15.37988493]
[1772503212654,2.22249609,2016.5,2014.3,2.30748903]
[1772503212655,2.22249609,2015.7,2014.3,2.30748903]
[1772503212962,2.22249609,2016.1,2014.9,2.30748903]
[1772503213155,2.22672661,2016.1,2015.0,8.77848903]
[1772503213355,0.00423052,2016.1,2015.2,2.30748903]
[1772503213555,6.09781,2017.5,2015.1,6.10492]
[1772503213556,2.22249609,2017.2,2015.5,2.30748903]
[1772503213756,2.22249609,2017.2,2015.6,2.30748903]
[1772503213957,2.22249609,2017.2,2015.9,2.30748903]
[1772503214256,2.22249609,2017.2,2016.1,2.30748903]
[1772503214464,0.00358237,2017.2,2016.1,8.20934903]
[1772503214658,10.14383125,2018.4,2016.6,2.30748903]
[1772503214659,2.22249609,2018.4,2016.6,2.30748903]
[1772503214959,2.22249609,2018.4,2016.8,2.30748903]
[1772503215163,2.22249609,2018.4,2017.0,2.30748903]
[1772503215364,2.22249609,2018.4,2017.0,8.39248903]
[1772503215557,2.22249609,2017.9,2015.9,2.30748903]
[1772503215755,2.22249609,2017.6,2016.1,2.30748903]
[1772503216162,4.2789309,2017.3,2015.9,0.00451262]
[1772503216464,6.09799,2017.4,2015.3,2.30748903]
[1772503216465,2.22249609,2016.8,2015.3,2.30748903]
[1772503216762,2.22249609,2016.7,2015.4,2.30748903]
[1772503217257,2.22249609,2016.7,2014.2,7.0168617]
[1772503217458,2.22249609,2016.4,2014.8,2.30748903]
[1772503217660,2.22249609,2016.4,2014.6,0.00478501]
[1772503217661,2.22889931,2016.4,2014.9,8.69489378]
[1772503217860,2.22889931,2016.4,2015.0,2.22389378]
[1772503218159,2.32786789,2016.9,2015.1,2.22389378]
[1772503218358,2.32786789,2016.9,2015.3,2.22155057]
[1772503218554,2.32786789,2016.9,2014.7,2.22155057]
[1772503218555,2.18666213,2016.1,2014.7,2.22155057]
[1772503218760,2.18666213,2015.7,2014.6,2.22633558]
[1772503219158,2.19176998,2015.7,2014.8,2.22155057]
[1772503219357,2.18666213,2016.0,2014.9,2.22155057]
[1772503219562,2.18666213,2016.3,2014.9,2.22155057]
[1772503219765,2.18666213,2016.3,2014.9,8.69355057]
[1772503220056,2.18666213,2016.3,2015.0,8.69355057]
[1772503220259,2.18666213,2016.3,2015.1,2.22155057]
[1772503220460,2.19149171,2016.3,2015.1,2.22155057]
[1772503221259,2.18666213,2016.0,2014.6,0.00478501]
[1772503221455,2.18666213,2015.1,2013.6,2.22155057]
[1772503221758,2.18666213,2015.1,2013.8,2.22155057]
[1772503221954,2.18666213,2015.1,2014.3,2.22155057]
[1772503222160,2.18666213,2015.4,2014.3,2.22155057]
[1772503222758,2.18666213,2015.4,2014.3,2.22779845]
[1772503223260,2.18666213,2015.7,2014.5,2.22155057]
[1772503223558,2.18666213,2015.7,2014.4,8.17487616]
[1772503223559,2.18666213,2016.0,2014.8,2.22155057]
[1772503223861,2.18666213,2016.0,2015.1,2.22155057]
[1772503224160,2.18666213,2015.7,2014.6,2.22155057]
[1772503224659,2.18666213,2015.5,2014.3,0.00624788]
[1772503224860,2.18666213,2015.5,2012.7,2.22155057]
[1772503224861,2.18666213,2014.3,2012.7,2.22155057]
[1772503225055,6.10544,2015.0,2013.3,2.22155057]
[1772503225056,2.75823172,2015.0,2013.3,2.22155057]
[1772503225260,2.18666213,2014.9,2013.3,2.22155057]
[1772503225456,2.18666213,2014.9,2013.5,2.22155057]
[1772503225661,2.18666213,2014.9,2013.7,2.22155057]
[1772503225861,2.19044468,2014.9,2013.9,2.22155057]
[1772503226057,0.00378255,2014.9,2013.9,2.22155057]
[1772503226567,2.19044468,2014.9,2013.9,2.22155057]
[1772503227862,0.00378255,2014.9,2013.9,2.22155057]